[Event "*** Titled Tuesday Blitz"]
[Site "Chess.com"]
[Date "2020.10.27"]
[Round "1"]
[White "Smile2005"]
[Black "Jungle_Jaguar"]
[Result "0-1"]
[WhiteElo "2300"]
[BlackElo "2645"]
[TimeControl "180+1"]
[EndTime "10:07:56 PDT"]
[Termination "Jungle_Jaguar won by resignation"]

1. d4 {[%clk 0:02:57]} 1... f6 {[%clk 0:02:59.6]} 2. c4 {[%clk 0:02:56.7]} 2...
Nh6 {[%clk 0:02:59.7]} 3. Nc3 {[%clk 0:02:56]} 3... Nf7 {[%clk 0:03:00]} 4. e4
{[%clk 0:02:55.5]} 4... g6 {[%clk 0:03:00.3]} 5. f4 {[%clk 0:02:53.2]} 5... Bg7
{[%clk 0:03:00.3]} 6. Nf3 {[%clk 0:02:53.3]} 6... O-O {[%clk 0:03:00.2]} 7. Be2
{[%clk 0:02:51.6]} 7... c6 {[%clk 0:02:43.9]} 8. O-O {[%clk 0:02:50.5]} 8... e5
{[%clk 0:02:28.4]} 9. dxe5 {[%clk 0:02:21.9]} 9... fxe5 {[%clk 0:02:28.2]} 10.
f5 {[%clk 0:02:22.3]} 10... d6 {[%clk 0:02:11]} 11. fxg6 {[%clk 0:02:20.7]}
11... hxg6 {[%clk 0:02:11.9]} 12. Be3 {[%clk 0:02:19.7]} 12... Be6 {[%clk
0:02:04.7]} 13. Qd2 {[%clk 0:02:14.5]} 13... Nd7 {[%clk 0:01:57.4]} 14. Rad1
{[%clk 0:02:13.1]} 14... Bf6 {[%clk 0:01:13.7]} 15. b3 {[%clk 0:01:49.8]} 15...
Kg7 {[%clk 0:01:12.9]} 16. Rf2 {[%clk 0:01:34.7]} 16... Qe7 {[%clk 0:01:11.7]}
17. Rdf1 {[%clk 0:01:31.4]} 17... Rad8 {[%clk 0:01:06.6]} 18. Ne1 {[%clk
0:01:22.6]} 18... Rh8 {[%clk 0:00:56.8]} 19. Nf3 {[%clk 0:01:09.2]} 19... a6
{[%clk 0:00:55.5]} 20. h3 {[%clk 0:01:01.6]} 20... Rh7 {[%clk 0:00:51.7]} 21.
Nh2 {[%clk 0:01:01]} 21... Kg8 {[%clk 0:00:26.9]} 22. Bg4 {[%clk 0:00:53.9]}
22... Bh4 {[%clk 0:00:17]} 23. Rf3 {[%clk 0:00:49.3]} 23... Ng5 {[%clk
0:00:12.3]} 24. Bxg5 {[%clk 0:00:46.9]} 24... Bxg5 {[%clk 0:00:12.6]} 25. Bxe6+
{[%clk 0:00:29.6]} 25... Kh8 {[%clk 0:00:09.5]} 26. Qe2 {[%clk 0:00:18.4]} 26...
Qxe6 {[%clk 0:00:10]} 27. Ng4 {[%clk 0:00:18.7]} 27... Rg7 {[%clk 0:00:06.9]}
28. Qf2 {[%clk 0:00:15.8]} 28... Rdg8 {[%clk 0:00:07]} 29. Rf7 {[%clk
0:00:11.9]} 29... Bd8 {[%clk 0:00:06.9]} 30. Rxg7 {[%clk 0:00:10.9]} 30... Rxg7
{[%clk 0:00:07.6]} 31. Qf3 {[%clk 0:00:10.4]} 31... Bb6+ {[%clk 0:00:07.6]} 32.
Kh1 {[%clk 0:00:10.1]} 32... Kg8 {[%clk 0:00:08.2]} 33. Na4 {[%clk 0:00:10.2]}
33... Bd8 {[%clk 0:00:07.8]} 34. Nb2 {[%clk 0:00:10.6]} 34... Kh7 {[%clk
0:00:08.1]} 35. Nd3 {[%clk 0:00:10.7]} 35... Be7 {[%clk 0:00:07.9]} 36. Ne1
{[%clk 0:00:08.4]} 36... Rg8 {[%clk 0:00:08.3]} 37. Qe2 {[%clk 0:00:07.2]} 37...
Rf8 {[%clk 0:00:08.2]} 38. Nc2 {[%clk 0:00:07.8]} 38... Kg7 {[%clk 0:00:06.8]}
39. Nce3 {[%clk 0:00:07.4]} 39... Nf6 {[%clk 0:00:07.1]} 40. Qd2 {[%clk
0:00:07]} 40... Nxe4 {[%clk 0:00:06.5]} 41. Qe1 {[%clk 0:00:04.4]} 41... Rxf1+
{[%clk 0:00:06.1]} 42. Nxf1 {[%clk 0:00:03.7]} 42... Qf5 {[%clk 0:00:06.7]} 43.
Nfe3 {[%clk 0:00:02.5]} 43... Qf7 {[%clk 0:00:05.5]} 44. Nf1 {[%clk 0:00:01.5]}
44... Nf6 {[%clk 0:00:06.1]} 45. Qd2 {[%clk 0:00:01.2]} 45... Nxg4 {[%clk
0:00:06.5]} 46. hxg4 {[%clk 0:00:02.1]} 46... Qxf1+ {[%clk 0:00:07.3]} 0-1

[Event "*** Titled Tuesday Blitz"]
[Site "Chess.com"]
[Date "2020.10.27"]
[Round "1"]
[White "Rytenko_V"]
[Black "Klavdia_Nik"]
[Result "1-0"]
[WhiteElo "2525"]
[BlackElo "2078"]
[TimeControl "180+1"]
[EndTime "10:07:58 PDT"]
[Termination "Rytenko_V won on time"]

1. d4 {[%clk 0:02:57.5]} 1... Nf6 {[%clk 0:02:57.7]} 2. Nf3 {[%clk 0:02:57.3]}
2... c5 {[%clk 0:02:55.6]} 3. Bg5 {[%clk 0:02:56.3]} 3... e6 {[%clk 0:02:45.7]}
4. e3 {[%clk 0:02:53.9]} 4... Be7 {[%clk 0:02:41.8]} 5. c4 {[%clk 0:02:52.2]}
5... Qa5+ {[%clk 0:02:32.4]} 6. Qd2 {[%clk 0:02:49]} 6... Qxd2+ {[%clk
0:02:30.2]} 7. Nbxd2 {[%clk 0:02:49.9]} 7... cxd4 {[%clk 0:02:24.9]} 8. Nxd4
{[%clk 0:02:46]} 8... Nc6 {[%clk 0:02:16.9]} 9. Be2 {[%clk 0:02:41.2]} 9... O-O
{[%clk 0:02:15]} 10. a3 {[%clk 0:02:34.4]} 10... h6 {[%clk 0:02:10.4]} 11. Bh4
{[%clk 0:02:28.1]} 11... Nxd4 {[%clk 0:02:00.5]} 12. exd4 {[%clk 0:02:27]} 12...
d5 {[%clk 0:02:00.2]} 13. c5 {[%clk 0:02:20.4]} 13... Bd7 {[%clk 0:01:59.4]} 14.
O-O {[%clk 0:02:14.2]} 14... a5 {[%clk 0:01:33.7]} 15. b4 {[%clk 0:02:10.1]}
15... axb4 {[%clk 0:01:08.9]} 16. axb4 {[%clk 0:02:11]} 16... g5 {[%clk
0:01:08.4]} 17. Bg3 {[%clk 0:02:10.3]} 17... Ne4 {[%clk 0:00:53.3]} 18. Nxe4
{[%clk 0:02:03.1]} 18... dxe4 {[%clk 0:00:49.1]} 19. b5 {[%clk 0:01:59.4]} 19...
f5 {[%clk 0:00:42.5]} 20. Be5 {[%clk 0:01:53.7]} 20... Kf7 {[%clk 0:00:38.3]}
21. Bh5+ {[%clk 0:01:50.9]} 21... Kg8 {[%clk 0:00:37.4]} 22. h3 {[%clk
0:01:41.4]} 22... Bxb5 {[%clk 0:00:26.3]} 23. Rfb1 {[%clk 0:01:36.2]} 23... Bc6
{[%clk 0:00:23.4]} 24. Be2 {[%clk 0:01:30.7]} 24... Kf7 {[%clk 0:00:21.1]} 25.
Bc4 {[%clk 0:01:29.7]} 25... Rfd8 {[%clk 0:00:19]} 26. Rxa8 {[%clk 0:01:05.4]}
26... Rxa8 {[%clk 0:00:18.1]} 27. Bb5 {[%clk 0:01:05.7]} 27... Bd5 {[%clk
0:00:13.3]} 28. Bd7 {[%clk 0:00:58.5]} 28... Bf6 {[%clk 0:00:12.4]} 29. Rb6
{[%clk 0:00:35.3]} 29... Bxe5 {[%clk 0:00:11.4]} 30. dxe5 {[%clk 0:00:36.2]}
30... Ke7 {[%clk 0:00:10.6]} 31. Bb5 {[%clk 0:00:28.9]} 31... Rc8 {[%clk
0:00:09.2]} 32. c6 {[%clk 0:00:24.9]} 32... Bxc6 {[%clk 0:00:09.4]} 33. Bxc6
{[%clk 0:00:20.8]} 33... bxc6 {[%clk 0:00:09.4]} 34. Rb7+ {[%clk 0:00:21.2]}
34... Kf8 {[%clk 0:00:08.7]} 35. Kf1 {[%clk 0:00:20.8]} 35... Kg8 {[%clk
0:00:07.5]} 36. Ke2 {[%clk 0:00:20.8]} 36... c5 {[%clk 0:00:08.1]} 37. Kd2
{[%clk 0:00:21.1]} 37... c4 {[%clk 0:00:06.8]} 38. Kc3 {[%clk 0:00:21.5]} 38...
Rc5 {[%clk 0:00:06.8]} 39. Kd4 {[%clk 0:00:19.8]} 39... Rd5+ {[%clk 0:00:06.7]}
40. Kxc4 {[%clk 0:00:20.2]} 40... Rxe5 {[%clk 0:00:07.4]} 41. Kd4 {[%clk
0:00:16.2]} 41... Rd5+ {[%clk 0:00:07.6]} 42. Ke3 {[%clk 0:00:16.7]} 42... Ra5
{[%clk 0:00:07.4]} 43. Re7 {[%clk 0:00:15.5]} 43... Ra6 {[%clk 0:00:06.5]} 44.
h4 {[%clk 0:00:14.6]} 44... Rb6 {[%clk 0:00:03.8]} 45. g3 {[%clk 0:00:12.7]}
45... Rc6 {[%clk 0:00:03.3]} 46. hxg5 {[%clk 0:00:12.7]} 46... Rd6 {[%clk
0:00:04.2]} 47. gxh6 {[%clk 0:00:12.1]} 47... Kh8 {[%clk 0:00:03.2]} 48. Kf4
{[%clk 0:00:12.2]} 1-0

[Event "*** Titled Tuesday Blitz"]
[Site "Chess.com"]
[Date "2020.10.27"]
[Round "1"]
[White "Genghis_K"]
[Black "Agnes66678"]
[Result "1-0"]
[WhiteElo "2898"]
[BlackElo "2463"]
[TimeControl "180+1"]
[EndTime "10:08:00 PDT"]
[Termination "Genghis_K won by checkmate"]

1. e4 {[%clk 0:02:59.1]} 1... e5 {[%clk 0:02:58.6]} 2. Nf3 {[%clk 0:02:59.3]}
2... Nf6 {[%clk 0:02:58.3]} 3. Nc3 {[%clk 0:02:58.4]} 3... Nc6 {[%clk
0:02:57.5]} 4. Bb5 {[%clk 0:02:57.8]} 4... Bb4 {[%clk 0:02:57.7]} 5. O-O {[%clk
0:02:57.1]} 5... O-O {[%clk 0:02:57.5]} 6. d3 {[%clk 0:02:57.3]} 6... d6 {[%clk
0:02:57.3]} 7. Ne2 {[%clk 0:02:57.3]} 7... Ne7 {[%clk 0:02:56.5]} 8. c3 {[%clk
0:02:56.5]} 8... Ba5 {[%clk 0:02:54.9]} 9. Ng3 {[%clk 0:02:54.2]} 9... c6 {[%clk
0:02:53]} 10. Ba4 {[%clk 0:02:54]} 10... Ng6 {[%clk 0:02:52.2]} 11. Bc2 {[%clk
0:02:41]} 11... h6 {[%clk 0:02:51.8]} 12. d4 {[%clk 0:02:40.9]} 12... exd4
{[%clk 0:02:48.9]} 13. cxd4 {[%clk 0:02:40.1]} 13... Re8 {[%clk 0:02:49.3]} 14.
h3 {[%clk 0:02:36.2]} 14... Be6 {[%clk 0:02:39.6]} 15. Bd3 {[%clk 0:02:21.3]}
15... Bb6 {[%clk 0:02:21.5]} 16. Be3 {[%clk 0:02:14.2]} 16... Qe7 {[%clk
0:02:11.2]} 17. a4 {[%clk 0:02:09.7]} 17... Rad8 {[%clk 0:02:08.5]} 18. a5
{[%clk 0:02:07.7]} 18... Bc7 {[%clk 0:02:08.7]} 19. Re1 {[%clk 0:02:06.1]} 19...
c5 {[%clk 0:02:07]} 20. Nf5 {[%clk 0:02:01.3]} 20... Qf8 {[%clk 0:02:03.7]} 21.
Qd2 {[%clk 0:01:52]} 21... d5 {[%clk 0:02:03.4]} 22. e5 {[%clk 0:01:48.3]} 22...
Ne4 {[%clk 0:02:02.5]} 23. Bxe4 {[%clk 0:01:35.9]} 23... dxe4 {[%clk 0:02:03.4]}
24. Nxh6+ {[%clk 0:01:26.4]} 24... Kh8 {[%clk 0:01:50.6]} 25. Nh2 {[%clk
0:01:14.1]} 25... Bxe5 {[%clk 0:01:41.3]} 26. N6g4 {[%clk 0:01:03.5]} 26...
Bxh2+ {[%clk 0:01:37.8]} 27. Nxh2 {[%clk 0:01:01.6]} 27... cxd4 {[%clk
0:01:37.8]} 28. Bxd4 {[%clk 0:01:01.1]} 28... Bd5 {[%clk 0:01:28.4]} 29. Ng4
{[%clk 0:00:54.3]} 29... Kg8 {[%clk 0:01:25.4]} 30. Qg5 {[%clk 0:00:46.9]} 30...
Bc6 {[%clk 0:01:13.1]} 31. Bxa7 {[%clk 0:00:42.8]} 31... Rd5 {[%clk 0:01:11.9]}
32. Qc1 {[%clk 0:00:40.5]} 32... f5 {[%clk 0:01:09.4]} 33. Ne3 {[%clk
0:00:40.9]} 33... Rd3 {[%clk 0:01:04.5]} 34. Qc4+ {[%clk 0:00:39.9]} 34... Kh7
{[%clk 0:01:00.6]} 35. Qc5 {[%clk 0:00:32.4]} 35... Qxc5 {[%clk 0:00:55.9]} 36.
Bxc5 {[%clk 0:00:33.3]} 36... f4 {[%clk 0:00:56]} 37. Ng4 {[%clk 0:00:33.2]}
37... Bb5 {[%clk 0:00:47.1]} 38. b4 {[%clk 0:00:29.1]} 38... Nh4 {[%clk
0:00:37.3]} 39. Rad1 {[%clk 0:00:24.9]} 39... Nf5 {[%clk 0:00:30.1]} 40. Rc1
{[%clk 0:00:18.3]} 40... e3 {[%clk 0:00:20.4]} 41. fxe3 {[%clk 0:00:17]} 41...
fxe3 {[%clk 0:00:20.5]} 42. Bb6 {[%clk 0:00:12.9]} 42... Re7 {[%clk 0:00:18.3]}
43. Rc5 {[%clk 0:00:12.8]} 43... Ng3 {[%clk 0:00:14.6]} 44. Rxb5 {[%clk
0:00:10]} 44... e2 {[%clk 0:00:14.7]} 45. Re5 {[%clk 0:00:09.4]} 45... Rxe5
{[%clk 0:00:12.3]} 46. Nxe5 {[%clk 0:00:09.3]} 46... Rd1 {[%clk 0:00:13.2]} 47.
Nf3 {[%clk 0:00:09]} 47... Ne4 {[%clk 0:00:11.8]} 48. Kh2 {[%clk 0:00:08.2]}
48... Kg6 {[%clk 0:00:11.4]} 49. Rxe2 {[%clk 0:00:08]} 49... Nc3 {[%clk
0:00:10.2]} 50. Re6+ {[%clk 0:00:07]} 50... Kf7 {[%clk 0:00:09.8]} 51. Ng5+
{[%clk 0:00:06.6]} 51... Kf8 {[%clk 0:00:09.3]} 52. Bc5+ {[%clk 0:00:06.6]}
52... Kg8 {[%clk 0:00:09.4]} 53. Re8# {[%clk 0:00:06.9]} 1-0

[Event "*** Titled Tuesday Blitz"]
[Site "Chess.com"]
[Date "2020.10.27"]
[Round "1"]
[White "eCztery"]
[Black "Volodar_Murzin"]
[Result "0-1"]
[WhiteElo "2282"]
[BlackElo "2616"]
[TimeControl "180+1"]
[EndTime "10:08:09 PDT"]
[Termination "Volodar_Murzin won by checkmate"]

1. e4 {[%clk 0:02:53.6]} 1... c6 {[%clk 0:02:58.8]} 2. Nc3 {[%clk 0:02:52.6]}
2... d5 {[%clk 0:02:58.6]} 3. Nf3 {[%clk 0:02:45.9]} 3... Bg4 {[%clk 0:02:49.5]}
4. h3 {[%clk 0:02:45.5]} 4... Bxf3 {[%clk 0:02:46.1]} 5. Qxf3 {[%clk 0:02:42.3]}
5... Nf6 {[%clk 0:02:46.1]} 6. d3 {[%clk 0:02:38.3]} 6... e6 {[%clk 0:02:35.2]}
7. Bd2 {[%clk 0:02:36]} 7... Bb4 {[%clk 0:02:31.6]} 8. e5 {[%clk 0:02:24.8]}
8... Nfd7 {[%clk 0:02:29]} 9. Qg4 {[%clk 0:02:22.9]} 9... Bf8 {[%clk 0:02:27.9]}
10. f4 {[%clk 0:02:20.5]} 10... h5 {[%clk 0:02:26.1]} 11. Qf3 {[%clk 0:02:12.1]}
11... g6 {[%clk 0:02:08.2]} 12. O-O-O {[%clk 0:02:11.3]} 12... Na6 {[%clk
0:02:01]} 13. Kb1 {[%clk 0:02:07.4]} 13... Nc7 {[%clk 0:01:42.1]} 14. d4 {[%clk
0:02:02.3]} 14... b5 {[%clk 0:01:31.5]} 15. g4 {[%clk 0:01:55.4]} 15... b4
{[%clk 0:01:09.3]} 16. Na4 {[%clk 0:01:45.3]} 16... Nb5 {[%clk 0:00:49.9]} 17.
Rg1 {[%clk 0:01:25.8]} 17... Nxd4 {[%clk 0:00:40.2]} 18. Qf2 {[%clk 0:01:21.2]}
18... c5 {[%clk 0:00:34.9]} 19. Bxb4 {[%clk 0:01:10.5]} 19... cxb4 {[%clk
0:00:20.2]} 20. Qxd4 {[%clk 0:01:05.9]} 20... Qa5 {[%clk 0:00:20.6]} 21. b3
{[%clk 0:00:59.4]} 21... Bc5 {[%clk 0:00:20.3]} 22. Nxc5 {[%clk 0:00:58.3]}
22... Qxc5 {[%clk 0:00:21.2]} 23. Qxc5 {[%clk 0:00:41]} 23... Nxc5 {[%clk
0:00:22.1]} 24. f5 {[%clk 0:00:39.4]} 24... hxg4 {[%clk 0:00:19.8]} 25. hxg4
{[%clk 0:00:40.3]} 25... a5 {[%clk 0:00:16.3]} 26. Bd3 {[%clk 0:00:37.9]} 26...
g5 {[%clk 0:00:11.8]} 27. fxe6 {[%clk 0:00:37.2]} 27... fxe6 {[%clk 0:00:10.7]}
28. Rgf1 {[%clk 0:00:33.7]} 28... Ke7 {[%clk 0:00:10.5]} 29. Bg6 {[%clk
0:00:30]} 29... Raf8 {[%clk 0:00:09.4]} 30. Rxf8 {[%clk 0:00:29.7]} 30... Rxf8
{[%clk 0:00:09]} 31. Rh1 {[%clk 0:00:30.6]} 31... Nd7 {[%clk 0:00:08]} 32. Rh7+
{[%clk 0:00:30.6]} 32... Kd8 {[%clk 0:00:08.4]} 33. Bd3 {[%clk 0:00:30.4]} 33...
Nxe5 {[%clk 0:00:07.9]} 34. Bb5 {[%clk 0:00:28.6]} 34... Rf4 {[%clk 0:00:06.5]}
35. Ra7 {[%clk 0:00:16.7]} 35... Rxg4 {[%clk 0:00:06.1]} 36. Rxa5 {[%clk
0:00:16.8]} 36... Re4 {[%clk 0:00:05.8]} 37. Ra6 {[%clk 0:00:16.8]} 37... Ke7
{[%clk 0:00:05.4]} 38. Ra7+ {[%clk 0:00:15.9]} 38... Kf6 {[%clk 0:00:05.8]} 39.
a4 {[%clk 0:00:12.9]} 39... g4 {[%clk 0:00:06.1]} 40. a5 {[%clk 0:00:12.4]}
40... g3 {[%clk 0:00:06.4]} 41. Ra8 {[%clk 0:00:08.4]} 41... g2 {[%clk
0:00:06.4]} 42. Rf8+ {[%clk 0:00:07.4]} 42... Kg7 {[%clk 0:00:05]} 43. Rc8
{[%clk 0:00:05]} 43... g1=Q+ {[%clk 0:00:05]} 44. Kb2 {[%clk 0:00:05.9]} 44...
Qd4+ {[%clk 0:00:04.8]} 45. c3 {[%clk 0:00:03.2]} 45... bxc3+ {[%clk 0:00:04.3]}
46. Rxc3 {[%clk 0:00:02.9]} 46... Re3 {[%clk 0:00:04.7]} 47. a6 {[%clk
0:00:01.6]} 47... Qxc3+ {[%clk 0:00:05.6]} 48. Kb1 {[%clk 0:00:01.8]} 48...
Qxb3+ {[%clk 0:00:05.5]} 49. Kc1 {[%clk 0:00:02.7]} 49... Re1+ {[%clk
0:00:05.5]} 50. Kd2 {[%clk 0:00:03.6]} 50... Rd1+ {[%clk 0:00:06]} 51. Ke2
{[%clk 0:00:03.9]} 51... Qf3# {[%clk 0:00:06.9]} 0-1

[Event "*** Titled Tuesday Blitz"]
[Site "Chess.com"]
[Date "2020.10.27"]
[Round "1"]
[White "SergeyShtyka"]
[Black "Fy_Rakotomaharo"]
[Result "0-1"]
[WhiteElo "2301"]
[BlackElo "2648"]
[TimeControl "180+1"]
[EndTime "10:08:10 PDT"]
[Termination "Fy_Rakotomaharo won by resignation"]

1. e4 {[%clk 0:02:55.9]} 1... c5 {[%clk 0:02:59.7]} 2. Nf3 {[%clk 0:02:53.6]}
2... e6 {[%clk 0:02:59.2]} 3. d4 {[%clk 0:02:51.7]} 3... cxd4 {[%clk 0:03:00.1]}
4. Nxd4 {[%clk 0:02:52.4]} 4... Nf6 {[%clk 0:02:59.3]} 5. Nc3 {[%clk 0:02:52]}
5... Nc6 {[%clk 0:02:59.8]} 6. Ndb5 {[%clk 0:02:47.2]} 6... Bb4 {[%clk
0:02:59.7]} 7. a3 {[%clk 0:02:46.8]} 7... Bxc3+ {[%clk 0:03:00.2]} 8. Nxc3
{[%clk 0:02:47.7]} 8... d5 {[%clk 0:03:01]} 9. exd5 {[%clk 0:02:48.1]} 9... Nxd5
{[%clk 0:03:01.9]} 10. Nxd5 {[%clk 0:02:48.1]} 10... exd5 {[%clk 0:03:02.8]} 11.
Bd3 {[%clk 0:02:48]} 11... O-O {[%clk 0:03:02.5]} 12. O-O {[%clk 0:02:48]} 12...
Qh4 {[%clk 0:03:02.8]} 13. Qf3 {[%clk 0:02:30.8]} 13... Be6 {[%clk 0:03:02.3]}
14. Qg3 {[%clk 0:02:29.7]} 14... Qxg3 {[%clk 0:02:53.8]} 15. hxg3 {[%clk
0:02:29.4]} 15... Ne5 {[%clk 0:02:49.3]} 16. Bf4 {[%clk 0:02:25.3]} 16... Nxd3
{[%clk 0:02:47.1]} 17. cxd3 {[%clk 0:02:26.2]} 17... Bf5 {[%clk 0:02:41.9]} 18.
d4 {[%clk 0:02:25.3]} 18... Rac8 {[%clk 0:02:37.2]} 19. Rac1 {[%clk 0:02:24.2]}
19... Rc4 {[%clk 0:02:25.1]} 20. Rxc4 {[%clk 0:02:09.1]} 20... dxc4 {[%clk
0:02:26]} 21. d5 {[%clk 0:02:04.1]} 21... Rd8 {[%clk 0:02:22.1]} 22. d6 {[%clk
0:02:03.6]} 22... f6 {[%clk 0:02:22.3]} 23. Rd1 {[%clk 0:02:00.2]} 23... g5
{[%clk 0:02:09.9]} 24. Be3 {[%clk 0:01:59.6]} 24... b6 {[%clk 0:02:08.7]} 25.
Rd4 {[%clk 0:01:55.7]} 25... Bd3 {[%clk 0:02:01.4]} 26. f4 {[%clk 0:01:52.1]}
26... h6 {[%clk 0:02:00.8]} 27. a4 {[%clk 0:01:39.5]} 27... Kf7 {[%clk
0:01:32.7]} 28. b3 {[%clk 0:01:35.4]} 28... Ke6 {[%clk 0:01:32.7]} 29. bxc4
{[%clk 0:01:21.8]} 29... Rxd6 {[%clk 0:01:32.4]} 30. f5+ {[%clk 0:00:39.7]}
30... Bxf5 {[%clk 0:01:18.3]} 31. Rxd6+ {[%clk 0:00:38.4]} 31... Kxd6 {[%clk
0:01:19.2]} 32. Bd4 {[%clk 0:00:37.6]} 32... Bd3 {[%clk 0:01:10]} 33. Bxf6
{[%clk 0:00:30.6]} 33... g4 {[%clk 0:01:05.6]} 34. Bc3 {[%clk 0:00:25.8]} 34...
a5 {[%clk 0:00:39.1]} 35. Bd4 {[%clk 0:00:25.2]} 35... Kc6 {[%clk 0:00:39]} 36.
Kf2 {[%clk 0:00:25.6]} 36... Bxc4 {[%clk 0:00:38.3]} 37. Ke3 {[%clk 0:00:25.8]}
37... Bb3 {[%clk 0:00:38.3]} 38. Kd3 {[%clk 0:00:26.3]} 38... Bxa4 {[%clk
0:00:38.4]} 39. Kc3 {[%clk 0:00:26.8]} 39... h5 {[%clk 0:00:33.5]} 40. Bf6
{[%clk 0:00:25.1]} 40... Bb5 {[%clk 0:00:33.5]} 41. Kb3 {[%clk 0:00:25.1]} 41...
Bf1 {[%clk 0:00:33.6]} 42. Be7 {[%clk 0:00:24.6]} 42... Bxg2 {[%clk 0:00:33.4]}
43. Bf6 {[%clk 0:00:25.1]} 43... Bd5+ {[%clk 0:00:31.3]} 44. Ka3 {[%clk
0:00:24.8]} 44... Bc4 {[%clk 0:00:26.8]} 45. Bd8 {[%clk 0:00:24.7]} 45... Kb5
{[%clk 0:00:23.9]} 46. Bc7 {[%clk 0:00:24.3]} 46... Ka6 {[%clk 0:00:23.4]} 47.
Bd8 {[%clk 0:00:23.8]} 47... b5 {[%clk 0:00:23.9]} 48. Be7 {[%clk 0:00:23.8]}
48... b4+ {[%clk 0:00:23]} 49. Ka4 {[%clk 0:00:24.2]} 49... Bb5+ {[%clk
0:00:22.5]} 50. Kb3 {[%clk 0:00:24.4]} 50... Bd7 {[%clk 0:00:22.5]} 51. Bf8
{[%clk 0:00:23.9]} 51... Kb5 {[%clk 0:00:22.7]} 52. Be7 {[%clk 0:00:23.7]} 52...
a4+ {[%clk 0:00:23]} 53. Kb2 {[%clk 0:00:24.3]} 53... a3+ {[%clk 0:00:23.2]} 54.
Ka1 {[%clk 0:00:24.7]} 54... Bf5 {[%clk 0:00:21.4]} 55. Bf6 {[%clk 0:00:24.5]}
55... Ka4 {[%clk 0:00:21.4]} 56. Bd4 {[%clk 0:00:17.8]} 56... b3 {[%clk
0:00:21.4]} 57. Be5 {[%clk 0:00:13.1]} 57... Kb5 {[%clk 0:00:21.3]} 58. Bd6
{[%clk 0:00:12.9]} 58... b2+ {[%clk 0:00:21.5]} 59. Ka2 {[%clk 0:00:12.9]} 59...
b1=Q+ {[%clk 0:00:21.6]} 60. Kxa3 {[%clk 0:00:12.2]} 60... Kc4 {[%clk
0:00:21.4]} 0-1

[Event "*** Titled Tuesday Blitz"]
[Site "Chess.com"]
[Date "2020.10.27"]
[Round "1"]
[White "coco_crc"]
[Black "chessasuke"]
[Result "0-1"]
[WhiteElo "2182"]
[BlackElo "2559"]
[TimeControl "180+1"]
[EndTime "10:08:11 PDT"]
[Termination "chessasuke won by resignation"]

1. e4 {[%clk 0:02:59.6]} 1... c5 {[%clk 0:03:00.9]} 2. Nf3 {[%clk 0:02:59.2]}
2... e6 {[%clk 0:03:01.8]} 3. c3 {[%clk 0:02:59.1]} 3... Nf6 {[%clk 0:03:01.2]}
4. e5 {[%clk 0:02:59.4]} 4... Nd5 {[%clk 0:03:01.1]} 5. d4 {[%clk 0:03:00]} 5...
cxd4 {[%clk 0:03:01.5]} 6. Bc4 {[%clk 0:02:59.2]} 6... Nc6 {[%clk 0:02:59.8]} 7.
cxd4 {[%clk 0:02:58.3]} 7... d6 {[%clk 0:02:59.5]} 8. Qe2 {[%clk 0:02:58]} 8...
Be7 {[%clk 0:02:57.3]} 9. O-O {[%clk 0:02:54.2]} 9... O-O {[%clk 0:02:50.5]} 10.
Nc3 {[%clk 0:02:54.3]} 10... Nxc3 {[%clk 0:02:49.7]} 11. bxc3 {[%clk 0:02:55.2]}
11... Qc7 {[%clk 0:02:47.6]} 12. exd6 {[%clk 0:02:52.1]} 12... Bxd6 {[%clk
0:02:47.4]} 13. Bd2 {[%clk 0:02:50.2]} 13... b6 {[%clk 0:02:46.7]} 14. Bd3
{[%clk 0:02:44.3]} 14... g6 {[%clk 0:02:45.8]} 15. Bh6 {[%clk 0:02:35.4]} 15...
Re8 {[%clk 0:02:40.2]} 16. Rfc1 {[%clk 0:02:35.7]} 16... Bb7 {[%clk 0:02:39.8]}
17. h4 {[%clk 0:02:35.1]} 17... Bf4 {[%clk 0:02:36.3]} 18. Bxf4 {[%clk 0:02:34]}
18... Qxf4 {[%clk 0:02:37.2]} 19. Qe3 {[%clk 0:02:34]} 19... Qxe3 {[%clk
0:02:36.2]} 20. fxe3 {[%clk 0:02:34.9]} 20... Rac8 {[%clk 0:02:33.9]} 21. Bb5
{[%clk 0:02:27.3]} 21... Red8 {[%clk 0:02:31.6]} 22. Bxc6 {[%clk 0:02:18.1]}
22... Bxc6 {[%clk 0:02:32.5]} 23. c4 {[%clk 0:02:18.3]} 23... f6 {[%clk
0:02:29.8]} 24. Kf2 {[%clk 0:02:17.3]} 24... b5 {[%clk 0:02:28.2]} 25. cxb5
{[%clk 0:02:13.9]} 25... Bxb5 {[%clk 0:02:29.1]} 26. Rab1 {[%clk 0:02:08.9]}
26... a6 {[%clk 0:02:26.5]} 27. Nd2 {[%clk 0:02:05.4]} 27... Kf7 {[%clk
0:02:24.5]} 28. Nb3 {[%clk 0:02:05.5]} 28... e5 {[%clk 0:02:19.7]} 29. dxe5
{[%clk 0:01:57.3]} 29... fxe5 {[%clk 0:02:20.6]} 30. Rxc8 {[%clk 0:01:56.1]}
30... Rxc8 {[%clk 0:02:19.6]} 31. Rc1 {[%clk 0:01:56.1]} 31... Rxc1 {[%clk
0:02:18]} 32. Nxc1 {[%clk 0:01:57]} 32... Bc4 {[%clk 0:02:18.7]} 33. Ke1 {[%clk
0:01:50.7]} 33... Ke6 {[%clk 0:02:18.3]} 34. Kd2 {[%clk 0:01:51]} 34... Kf5
{[%clk 0:02:18.4]} 35. Kc3 {[%clk 0:01:49.6]} 35... Bd5 {[%clk 0:02:17.9]} 36.
Nd3 {[%clk 0:01:41.3]} 36... Bxg2 {[%clk 0:02:16]} 37. Nc5 {[%clk 0:01:36.7]}
37... Bf1 {[%clk 0:02:15.8]} 38. a4 {[%clk 0:01:32.3]} 38... h5 {[%clk
0:02:15.5]} 39. Kd2 {[%clk 0:01:25.5]} 39... Kg4 {[%clk 0:02:12.7]} 40. Nd7
{[%clk 0:01:20.2]} 40... Kxh4 {[%clk 0:02:10.1]} 41. Nxe5 {[%clk 0:01:19.7]}
41... Kg5 {[%clk 0:02:02.5]} 42. Ke1 {[%clk 0:01:18.1]} 42... Bg2 {[%clk
0:02:01.2]} 43. Nd3 {[%clk 0:01:15.7]} 43... Bc6 {[%clk 0:01:58.3]} 44. a5
{[%clk 0:01:15.4]} 44... Bb5 {[%clk 0:01:58.4]} 45. Nf4 {[%clk 0:01:10.7]} 45...
Kf5 {[%clk 0:01:57.4]} 46. Kf2 {[%clk 0:01:07.9]} 46... h4 {[%clk 0:01:57.8]}
47. Kf3 {[%clk 0:01:04.3]} 47... Bc6+ {[%clk 0:01:57.4]} 48. Kf2 {[%clk
0:01:04.5]} 48... g5 {[%clk 0:01:57.8]} 49. Ne2 {[%clk 0:01:03.2]} 49... Ke5
{[%clk 0:01:52.8]} 50. Nd4 {[%clk 0:01:02.2]} 50... Bd5 {[%clk 0:01:51.5]} 51.
Ne2 {[%clk 0:00:58]} 51... Bc4 {[%clk 0:01:42.4]} 52. Nd4 {[%clk 0:00:53.1]}
52... g4 {[%clk 0:01:41.9]} 53. Nc6+ {[%clk 0:00:47.5]} 53... Ke4 {[%clk
0:01:37.7]} 54. Nd4 {[%clk 0:00:38.8]} 54... Bd5 {[%clk 0:01:33.1]} 55. Ne2
{[%clk 0:00:19.3]} 55... g3+ {[%clk 0:01:31.5]} 56. Nxg3+ {[%clk 0:00:17.5]}
56... hxg3+ {[%clk 0:01:27]} 57. Kxg3 {[%clk 0:00:18.1]} 57... Kxe3 {[%clk
0:01:27.9]} 58. Kg4 {[%clk 0:00:17.5]} 58... Be6+ {[%clk 0:01:20.2]} 59. Kg3
{[%clk 0:00:17.4]} 59... Bd7 {[%clk 0:01:17.7]} 60. Kg2 {[%clk 0:00:15.2]} 60...
Bb5 {[%clk 0:01:17.9]} 61. Kg3 {[%clk 0:00:14.9]} 61... Be2 {[%clk 0:01:18.3]}
62. Kg2 {[%clk 0:00:15]} 62... Bc4 {[%clk 0:01:10.2]} 63. Kg3 {[%clk 0:00:15]}
63... Bd5 {[%clk 0:01:08.9]} 64. Kg4 {[%clk 0:00:14.8]} 64... Bc6 {[%clk
0:01:06.3]} 65. Kg3 {[%clk 0:00:15.1]} 65... Bb7 {[%clk 0:01:06.9]} 66. Kg4
{[%clk 0:00:15.4]} 66... Kd4 {[%clk 0:01:02.8]} 67. Kf4 {[%clk 0:00:15.6]} 67...
Ba8 {[%clk 0:01:00.8]} 68. Kf5 {[%clk 0:00:15.6]} 68... Kc5 {[%clk 0:00:50.9]}
69. Ke5 {[%clk 0:00:15.4]} 69... Bb7 {[%clk 0:00:45.9]} 70. Ke6 {[%clk
0:00:14.3]} 70... Kb5 {[%clk 0:00:44.5]} 71. Ke5 {[%clk 0:00:09.5]} 71... Kxa5
{[%clk 0:00:44.7]} 72. Kd4 {[%clk 0:00:10.4]} 72... Kb4 {[%clk 0:00:45.5]} 0-1